[Event "Titled Tuesday Blitz October 04 Early 2022"]
[White "Vlassov, Nikolai"]
[Black "Bryakin, Mikhail"]
[WhiteFideId "4103360"]
[BlackFideId "4165314"]
[WhiteElo "2324"]
[BlackElo "2367"]
[Result "1/2-1/2"]
[Round "09"]
[TimeControl "180+1"]
[Date "2022.10.04"]
[WhiteClock "0:00:03"]
[BlackClock "0:00:04"]

1. e4 {[%clk 0:03:00]}  d5 {[%clk 0:02:58]} 2. exd5 {[%clk 0:03:00]}  Qxd5 {[%clk 0:02:58]} 3. Nc3 {[%clk 0:03:01]}  Qe5+ {[%clk 0:02:57]} 4. Be2 {[%clk 0:03:01]}  Bg4 {[%clk 0:02:51]} 5. f3 {[%clk 0:03:01]}  Bh5 {[%clk 0:02:49]} 6. d4 {[%clk 0:03:01]}  Qa5 {[%clk 0:02:47]} 7. Nh3 {[%clk 0:03:01]}  Nf6 {[%clk 0:02:43]} 8. Nf4 {[%clk 0:03:00]}  Nc6 {[%clk 0:02:38]} 9. d5 {[%clk 0:02:37]}  O-O-O {[%clk 0:02:35]} 10. Bd2 {[%clk 0:02:32]}  Ne5 {[%clk 0:02:19]} 11. a4 {[%clk 0:02:15]}  Qb6 {[%clk 0:01:51]} 12. a5 {[%clk 0:02:04]}  Qc5 {[%clk 0:01:52]} 13. b4 {[%clk 0:01:53]}  Qxb4 {[%clk 0:01:47]} 14. O-O {[%clk 0:01:46]}  Nc4 {[%clk 0:01:41]} 15. Rb1 {[%clk 0:01:18]}  Qc5+ {[%clk 0:01:40]} 16. Kh1 {[%clk 0:01:18]}  Ne3 {[%clk 0:01:24]} 17. Bxe3 {[%clk 0:00:57]}  Qxe3 {[%clk 0:01:25]} 18. Nxh5 {[%clk 0:00:52]}  Qxc3 {[%clk 0:01:21]} 19. Nxf6 {[%clk 0:00:46]}  exf6 {[%clk 0:01:22]} 20. a6 {[%clk 0:00:42]}  b6 {[%clk 0:01:18]} 21. Bb5 {[%clk 0:00:41]}  Bc5 {[%clk 0:01:02]} 22. Rb3 {[%clk 0:00:37]}  Qe5 {[%clk 0:01:02]} 23. Bc6 {[%clk 0:00:35]}  Rd6 {[%clk 0:00:46]} 24. f4 {[%clk 0:00:33]}  Qf5 {[%clk 0:00:44]} 25. Qf3 {[%clk 0:00:28]}  h5 {[%clk 0:00:41]} 26. Rc3 {[%clk 0:00:25]}  Bb4 {[%clk 0:00:29]} 27. Rc4 {[%clk 0:00:24]}  Ba5 {[%clk 0:00:28]} 28. h3 {[%clk 0:00:22]}  Rhd8 {[%clk 0:00:17]} 29. Ra4 {[%clk 0:00:20]}  Bd2 {[%clk 0:00:16]} 30. Rd1 {[%clk 0:00:17]}  Ba5 {[%clk 0:00:03]} 31. Rxa5 {[%clk 0:00:16]}  bxa5 {[%clk 0:00:04]} 32. Rb1 {[%clk 0:00:14]}  Rxc6 {[%clk 0:00:05]} 33. dxc6 {[%clk 0:00:14]}  Rd6 {[%clk 0:00:04]} 34. Rb7 {[%clk 0:00:14]}  Qxc2 {[%clk 0:00:03]} 35. Qe3 {[%clk 0:00:10]}  Re6 {[%clk 0:00:03]} 36. Qxa7 {[%clk 0:00:09]}  Qc1+ {[%clk 0:00:04]} 37. Qg1 {[%clk 0:00:04]}  Re1 {[%clk 0:00:03]} 38. Qxe1 {[%clk 0:00:04]}  Qxe1+ {[%clk 0:00:04]} 39. Kh2 {[%clk 0:00:05]}  Qe3 {[%clk 0:00:03]} 40. a7 {[%clk 0:00:03]}  Qxf4+ {[%clk 0:00:03]} 41. Kh1 {[%clk 0:00:03]}  Qf1+ {[%clk 0:00:03]} 42. Kh2 {[%clk 0:00:03]}  Qf4+ {[%clk 0:00:04]} 43. Kh1 {[%clk 0:00:04]}  Qc1+ {[%clk 0:00:04]} 44. Kh2 {[%clk 0:00:03]}  Qf4+ {[%clk 0:00:04]} 1/2-1/2


[Site "https://www.chess.com"]

[Event "Titled Tuesday Blitz October 04 Early 2022"]
[White "Wong, Yinn Long"]
[Black "Yuan, Qingyu"]
[WhiteFideId "5707684"]
[BlackFideId "8609772"]
[WhiteElo "2271"]
[BlackElo "2359"]
[Result "1/2-1/2"]
[Round "09"]
[TimeControl "180+1"]
[Date "2022.10.04"]
[WhiteClock "0:00:14"]
[BlackClock "0:00:03"]

1. Nf3 {[%clk 0:03:00]}  d5 {[%clk 0:02:58]} 2. b3 {[%clk 0:03:01]}  c5 {[%clk 0:02:58]} 3. Bb2 {[%clk 0:03:01]}  f6 {[%clk 0:02:58]} 4. d3 {[%clk 0:02:50]}  e5 {[%clk 0:02:57]} 5. c4 {[%clk 0:02:50]}  d4 {[%clk 0:02:56]} 6. g3 {[%clk 0:02:50]}  Nc6 {[%clk 0:02:56]} 7. Bg2 {[%clk 0:02:50]}  Bd6 {[%clk 0:02:54]} 8. O-O {[%clk 0:02:49]}  Nge7 {[%clk 0:02:55]} 9. a3 {[%clk 0:02:46]}  O-O {[%clk 0:02:53]} 10. b4 {[%clk 0:02:46]}  cxb4 {[%clk 0:02:49]} 11. axb4 {[%clk 0:02:47]}  Bxb4 {[%clk 0:02:48]} 12. Ba3 {[%clk 0:02:44]}  Qd6 {[%clk 0:02:39]} 13. Qb3 {[%clk 0:02:44]}  Be6 {[%clk 0:02:30]} 14. Qa4 {[%clk 0:02:28]}  a6 {[%clk 0:02:19]} 15. Bxb4 {[%clk 0:02:19]}  Nxb4 {[%clk 0:02:12]} 16. Nbd2 {[%clk 0:02:09]}  Nec6 {[%clk 0:01:51]} 17. Rfb1 {[%clk 0:02:06]}  Qe7 {[%clk 0:01:08]} 18. Ne1 {[%clk 0:02:05]}  Rae8 {[%clk 0:01:00]} 19. Rb2 {[%clk 0:01:57]}  Rb8 {[%clk 0:00:57]} 20. Qa3 {[%clk 0:01:49]}  a5 {[%clk 0:00:49]} 21. Rab1 {[%clk 0:01:49]}  Qc7 {[%clk 0:00:45]} 22. Nb3 {[%clk 0:01:43]}  Bf7 {[%clk 0:00:37]} 23. Nxa5 {[%clk 0:01:36]}  Ra8 {[%clk 0:00:27]} 24. Rxb4 {[%clk 0:01:15]}  Nxb4 {[%clk 0:00:26]} 25. Qxb4 {[%clk 0:01:05]}  Rxa5 {[%clk 0:00:16]} 26. Nc2 {[%clk 0:01:05]}  Rb8 {[%clk 0:00:14]} 27. Na3 {[%clk 0:01:05]}  Qc5 {[%clk 0:00:14]} 28. Qxc5 {[%clk 0:01:04]}  Rxc5 {[%clk 0:00:15]} 29. Rb6 {[%clk 0:00:58]}  Rc7 {[%clk 0:00:13]} 30. Kf1 {[%clk 0:00:58]}  Be8 {[%clk 0:00:13]} 31. Bd5+ {[%clk 0:00:58]}  Kf8 {[%clk 0:00:13]} 32. Nb5 {[%clk 0:00:58]}  Bxb5 {[%clk 0:00:13]} 33. Rxb5 {[%clk 0:00:59]}  b6 {[%clk 0:00:14]} 34. Kg2 {[%clk 0:00:57]}  Rc5 {[%clk 0:00:14]} 35. Rb4 {[%clk 0:00:58]}  Ke7 {[%clk 0:00:13]} 36. g4 {[%clk 0:00:59]}  g6 {[%clk 0:00:13]} 37. h4 {[%clk 0:00:59]}  f5 {[%clk 0:00:14]} 38. h5 {[%clk 0:00:59]}  Kf6 {[%clk 0:00:14]} 39. Ra4 {[%clk 0:00:54]}  Ra5 {[%clk 0:00:14]} 40. Rb4 {[%clk 0:00:53]}  Kg5 {[%clk 0:00:13]} 41. hxg6 {[%clk 0:00:52]}  hxg6 {[%clk 0:00:14]} 42. gxf5 {[%clk 0:00:52]}  gxf5 {[%clk 0:00:15]} 43. Rb1 {[%clk 0:00:52]}  Ra7 {[%clk 0:00:13]} 44. e3 {[%clk 0:00:43]}  dxe3 {[%clk 0:00:12]} 45. fxe3 {[%clk 0:00:44]}  f4 {[%clk 0:00:10]} 46. Kf3 {[%clk 0:00:44]}  fxe3 {[%clk 0:00:07]} 47. Kxe3 {[%clk 0:00:45]}  Kf6 {[%clk 0:00:06]} 48. Ke4 {[%clk 0:00:45]}  Re7 {[%clk 0:00:04]} 49. Rb5 {[%clk 0:00:45]}  Kg6 {[%clk 0:00:03]} 50. c5 {[%clk 0:00:46]}  Kf6 {[%clk 0:00:03]} 51. cxb6 {[%clk 0:00:43]}  Rd7 {[%clk 0:00:03]} 52. b7 {[%clk 0:00:42]}  Rd6 {[%clk 0:00:02]} 53. Rb1 {[%clk 0:00:36]}  Rd7 {[%clk 0:00:02]} 54. Rf1+ {[%clk 0:00:36]}  Ke7 {[%clk 0:00:02]} 55. Rb1 {[%clk 0:00:30]}  Kd6 {[%clk 0:00:02]} 56. Rb6+ {[%clk 0:00:27]}  Kc7 {[%clk 0:00:03]} 57. Rb3 {[%clk 0:00:23]}  Re7 {[%clk 0:00:03]} 58. Rc3+ {[%clk 0:00:22]}  Kb6 {[%clk 0:00:04]} 59. Rb3+ {[%clk 0:00:21]}  Kc7 {[%clk 0:00:04]} 60. Kf5 {[%clk 0:00:21]}  Kd6 {[%clk 0:00:04]} 61. Be4 {[%clk 0:00:22]}  Rf7+ {[%clk 0:00:03]} 62. Kg5 {[%clk 0:00:22]}  Rg8+ {[%clk 0:00:03]} 63. Kh6 {[%clk 0:00:22]}  Rb8 {[%clk 0:00:03]} 64. Rb6+ {[%clk 0:00:22]}  Kc7 {[%clk 0:00:03]} 65. Rc6+ {[%clk 0:00:22]}  Kd7 {[%clk 0:00:03]} 66. Kg6 {[%clk 0:00:21]}  Rff8 {[%clk 0:00:02]} 67. Rc2 {[%clk 0:00:16]}  Kd6 {[%clk 0:00:02]} 68. Rc6+ {[%clk 0:00:15]}  Kd7 {[%clk 0:00:03]} 69. Rc5 {[%clk 0:00:16]}  Kd6 {[%clk 0:00:03]} 70. Rc1 {[%clk 0:00:14]}  Ke6 {[%clk 0:00:03]} 71. Rc6+ {[%clk 0:00:14]}  Kd7 {[%clk 0:00:03]} 1/2-1/2


[Site "https://www.chess.com"]

[Event "Titled Tuesday Blitz October 04 Early 2022"]
[White "Zelbel, Patrick"]
[Black "Kamsky, Gata"]
[WhiteFideId "24624322"]
[BlackFideId "2000024"]
[WhiteElo "2474"]
[BlackElo "2666"]
[Result "1/2-1/2"]
[Round "09"]
[TimeControl "180+1"]
[Date "2022.10.04"]
[WhiteClock "0:00:37"]
[BlackClock "0:00:19"]

1. e4 {[%clk 0:03:00]}  c5 {[%clk 0:02:58]} 2. b4 {[%clk 0:02:59]}  cxb4 {[%clk 0:02:55]} 3. a3 {[%clk 0:03:00]}  b3 {[%clk 0:02:53]} 4. cxb3 {[%clk 0:02:59]}  d5 {[%clk 0:02:51]} 5. exd5 {[%clk 0:02:54]}  Nf6 {[%clk 0:02:50]} 6. Nc3 {[%clk 0:02:55]}  Nxd5 {[%clk 0:02:49]} 7. Bb2 {[%clk 0:02:55]}  Nc6 {[%clk 0:02:47]} 8. Nf3 {[%clk 0:02:53]}  Bg4 {[%clk 0:02:45]} 9. h3 {[%clk 0:02:53]}  Bh5 {[%clk 0:02:38]} 10. Bb5 {[%clk 0:02:48]}  a6 {[%clk 0:02:26]} 11. Bxc6+ {[%clk 0:02:24]}  bxc6 {[%clk 0:02:26]} 12. O-O {[%clk 0:02:25]}  e6 {[%clk 0:02:22]} 13. Re1 {[%clk 0:02:21]}  Nf4 {[%clk 0:02:17]} 14. d4 {[%clk 0:02:12]}  Bd6 {[%clk 0:02:12]} 15. Ne4 {[%clk 0:02:09]}  O-O {[%clk 0:02:09]} 16. Ng3 {[%clk 0:02:09]}  Bg6 {[%clk 0:02:05]} 17. Ne4 {[%clk 0:01:58]}  Bxe4 {[%clk 0:01:39]} 18. Rxe4 {[%clk 0:01:59]}  Nd5 {[%clk 0:01:39]} 19. Rc1 {[%clk 0:01:53]}  Rc8 {[%clk 0:01:30]} 20. Nd2 {[%clk 0:01:52]}  Qe7 {[%clk 0:01:17]} 21. Nc4 {[%clk 0:01:52]}  Rc7 {[%clk 0:01:13]} 22. Qf3 {[%clk 0:01:50]}  a5 {[%clk 0:01:05]} 23. a4 {[%clk 0:01:45]}  Ra8 {[%clk 0:01:00]} 24. g3 {[%clk 0:01:39]}  Rb7 {[%clk 0:00:58]} 25. h4 {[%clk 0:01:37]}  Bc7 {[%clk 0:00:46]} 26. Rd1 {[%clk 0:01:32]}  Qf6 {[%clk 0:00:44]} 27. Rd3 {[%clk 0:01:28]}  Qxf3 {[%clk 0:00:42]} 28. Rxf3 {[%clk 0:01:29]}  Rab8 {[%clk 0:00:42]} 29. Nd2 {[%clk 0:01:29]}  h5 {[%clk 0:00:39]} 30. Ba3 {[%clk 0:01:25]}  Bd8 {[%clk 0:00:31]} 31. Bd6 {[%clk 0:01:21]}  Bc7 {[%clk 0:00:28]} 32. Bc5 {[%clk 0:01:21]}  Bd8 {[%clk 0:00:24]} 33. Bd6 {[%clk 0:01:11]}  Ra8 {[%clk 0:00:21]} 34. Kg2 {[%clk 0:01:06]}  Be7 {[%clk 0:00:21]} 35. Bc5 {[%clk 0:00:53]}  Bf6 {[%clk 0:00:20]} 36. Nc4 {[%clk 0:00:49]}  Ra6 {[%clk 0:00:18]} 37. Kf1 {[%clk 0:00:43]}  Rb8 {[%clk 0:00:18]} 38. Kg2 {[%clk 0:00:37]}  Rb7 {[%clk 0:00:18]} 39. Kf1 {[%clk 0:00:37]}  Rb8 {[%clk 0:00:18]} 40. Kg2 {[%clk 0:00:37]}  Rb7 {[%clk 0:00:19]} 1/2-1/2


[Site "https://www.chess.com"]

[Event "Titled Tuesday Blitz October 04 Early 2022"]
[White "Arabidze, Meri"]
[Black "Makarian, Rudik"]
[WhiteFideId "13604040"]
[BlackFideId "44105681"]
[WhiteElo "2403"]
[BlackElo "2405"]
[Result "0-1"]
[Round "10"]
[TimeControl "180+1"]
[Date "2022.10.04"]
[WhiteClock "0:00:01"]
[BlackClock "0:01:59"]

1. Nf3 {[%clk 0:03:00]}  Nf6 {[%clk 0:02:58]} 2. d4 {[%clk 0:03:01]}  c5 {[%clk 0:02:58]} 3. d5 {[%clk 0:03:01]}  b5 {[%clk 0:02:55]} 4. c4 {[%clk 0:02:57]}  b4 {[%clk 0:02:55]} 5. Bg5 {[%clk 0:02:51]}  g6 {[%clk 0:02:55]} 6. Nbd2 {[%clk 0:02:40]}  Bg7 {[%clk 0:02:55]} 7. a3 {[%clk 0:02:39]}  O-O {[%clk 0:02:55]} 8. axb4 {[%clk 0:02:39]}  cxb4 {[%clk 0:02:55]} 9. e4 {[%clk 0:02:37]}  d6 {[%clk 0:02:56]} 10. Be2 {[%clk 0:02:10]}  Nbd7 {[%clk 0:02:55]} 11. O-O {[%clk 0:02:07]}  Nc5 {[%clk 0:02:55]} 12. Qb1 {[%clk 0:02:02]}  a5 {[%clk 0:02:56]} 13. Nd4 {[%clk 0:02:01]}  Bb7 {[%clk 0:02:54]} 14. Be3 {[%clk 0:01:36]}  a4 {[%clk 0:02:49]} 15. e5 {[%clk 0:01:29]}  Nfd7 {[%clk 0:02:47]} 16. exd6 {[%clk 0:01:14]}  exd6 {[%clk 0:02:48]} 17. Nb5 {[%clk 0:01:15]}  Ne5 {[%clk 0:02:42]} 18. Bd4 {[%clk 0:01:06]}  Re8 {[%clk 0:02:41]} 19. f4 {[%clk 0:01:02]}  Ned7 {[%clk 0:02:38]} 20. Bxg7 {[%clk 0:00:51]}  Kxg7 {[%clk 0:02:39]} 21. Bf3 {[%clk 0:00:39]}  Qb6 {[%clk 0:02:38]} 22. Kh1 {[%clk 0:00:33]}  Ba6 {[%clk 0:02:37]} 23. Nd4 {[%clk 0:00:25]}  Nf6 {[%clk 0:02:36]} 24. Nc6 {[%clk 0:00:22]}  Bb7 {[%clk 0:02:36]} 25. f5 {[%clk 0:00:22]}  g5 {[%clk 0:02:27]} 26. Qd1 {[%clk 0:00:18]}  Re3 {[%clk 0:02:27]} 27. Re1 {[%clk 0:00:15]}  Nd3 {[%clk 0:02:25]} 28. Rf1 {[%clk 0:00:12]}  Re1 {[%clk 0:02:22]} 29. Qxe1 {[%clk 0:00:11]}  Nxe1 {[%clk 0:02:22]} 30. Rfxe1 {[%clk 0:00:11]}  a3 {[%clk 0:02:21]} 31. bxa3 {[%clk 0:00:12]}  Rxa3 {[%clk 0:02:20]} 32. Rab1 {[%clk 0:00:11]}  Bxc6 {[%clk 0:02:16]} 33. dxc6 {[%clk 0:00:12]}  g4 {[%clk 0:02:17]} 34. Bd5 {[%clk 0:00:11]}  Rd3 {[%clk 0:02:18]} 35. Ne4 {[%clk 0:00:09]}  Nxd5 {[%clk 0:02:17]} 36. cxd5 {[%clk 0:00:09]}  Rxd5 {[%clk 0:02:17]} 37. f6+ {[%clk 0:00:08]}  Kg6 {[%clk 0:02:17]} 38. Rec1 {[%clk 0:00:09]}  Qc7 {[%clk 0:02:06]} 39. Kg1 {[%clk 0:00:04]}  Rb5 {[%clk 0:02:04]} 40. Nd2 {[%clk 0:00:01]}  Rc5 {[%clk 0:02:04]} 41. Ne4 {[%clk 0:00:01]}  Rb5 {[%clk 0:01:59]} 0-1


[Site "https://www.chess.com"]

[Event "Titled Tuesday Blitz October 04 Early 2022"]
[White "Bortnyk, Olexandr"]
[Black "Wirig, Anthony"]
[WhiteFideId "14120828"]
[BlackFideId "615013"]
[WhiteElo "2723"]
[BlackElo "2474"]
[Result "1-0"]
[Round "10"]
[TimeControl "180+1"]
[Date "2022.10.04"]
[WhiteClock "0:02:17"]
[BlackClock "0:00:03"]

1. e4 {[%clk 0:03:00]}  c5 {[%clk 0:02:59]} 2. c3 {[%clk 0:03:01]}  g6 {[%clk 0:02:53]} 3. d4 {[%clk 0:03:01]}  cxd4 {[%clk 0:02:54]} 4. cxd4 {[%clk 0:03:01]}  d5 {[%clk 0:02:55]} 5. exd5 {[%clk 0:03:01]}  Nf6 {[%clk 0:02:53]} 6. Nc3 {[%clk 0:03:01]}  Bg7 {[%clk 0:02:52]} 7. Bc4 {[%clk 0:03:00]}  Nbd7 {[%clk 0:02:42]} 8. Bb3 {[%clk 0:02:53]}  Nb6 {[%clk 0:02:38]} 9. Nf3 {[%clk 0:02:53]}  Nbxd5 {[%clk 0:02:25]} 10. O-O {[%clk 0:02:54]}  O-O {[%clk 0:02:25]} 11. h3 {[%clk 0:02:54]}  b6 {[%clk 0:02:23]} 12. Re1 {[%clk 0:02:54]}  Bb7 {[%clk 0:02:23]} 13. Bg5 {[%clk 0:02:52]}  Re8 {[%clk 0:01:56]} 14. Ne5 {[%clk 0:02:47]}  Rc8 {[%clk 0:01:42]} 15. Qf3 {[%clk 0:02:46]}  e6 {[%clk 0:01:38]} 16. Ne4 {[%clk 0:02:33]}  Kf8 {[%clk 0:00:16]} 17. Nxf6 {[%clk 0:02:23]}  Bxf6 {[%clk 0:00:09]} 18. Bxd5 {[%clk 0:02:22]}  Bxd5 {[%clk 0:00:04]} 19. Qxf6 {[%clk 0:02:21]}  Qxf6 {[%clk 0:00:03]} 20. Nd7+ {[%clk 0:02:17]}  Kg7 {[%clk 0:00:03]} 21. Bxf6+ {[%clk 0:02:17]}  Kh6 {[%clk 0:00:02]} 22. Be5 {[%clk 0:02:18]}  g5 {[%clk 0:00:01]} 23. Nf6 {[%clk 0:02:16]}  Red8 {[%clk 0:00:01]} 24. Nxd5 {[%clk 0:02:16]}  Rxd5 {[%clk 0:00:02]} 25. Rac1 {[%clk 0:02:16]}  Rxc1 {[%clk 0:00:01]} 26. Rxc1 {[%clk 0:02:17]}  Kg6 {[%clk 0:00:01]} 27. Rc6 {[%clk 0:02:16]}  h5 {[%clk 0:00:01]} 28. g4 {[%clk 0:02:16]}  hxg4 {[%clk 0:00:01]} 29. hxg4 {[%clk 0:02:17]}  Rb5 {[%clk 0:00:02]} 30. b3 {[%clk 0:02:17]}  Ra5 {[%clk 0:00:02]} 31. a4 {[%clk 0:02:17]}  b5 {[%clk 0:00:03]} 32. Rc5 {[%clk 0:02:17]} 1-0


[Site "https://www.chess.com"]

[Event "Titled Tuesday Blitz October 04 Early 2022"]
[White "Durarbayli, Vasif"]
[Black "Zhao, Jun"]
[WhiteFideId "13402935"]
[BlackFideId "8602522"]
[WhiteElo "2586"]
[BlackElo "2547"]
[Result "0-1"]
[Round "10"]
[TimeControl "180+1"]
[Date "2022.10.04"]
[WhiteClock "0:00:03"]
[BlackClock "0:00:04"]

1. e4 {[%clk 0:03:00]}  e5 {[%clk 0:02:59]} 2. Nf3 {[%clk 0:03:00]}  Nc6 {[%clk 0:03:00]} 3. Bc4 {[%clk 0:03:00]}  Bc5 {[%clk 0:02:59]} 4. O-O {[%clk 0:02:59]}  Nf6 {[%clk 0:02:59]} 5. d3 {[%clk 0:02:59]}  d6 {[%clk 0:03:00]} 6. c3 {[%clk 0:03:00]}  O-O {[%clk 0:02:59]} 7. Re1 {[%clk 0:02:59]}  a5 {[%clk 0:02:59]} 8. b3 {[%clk 0:02:50]}  h6 {[%clk 0:02:52]} 9. a4 {[%clk 0:02:46]}  Ba7 {[%clk 0:02:49]} 10. Ra2 {[%clk 0:02:45]}  Ne7 {[%clk 0:02:44]} 11. d4 {[%clk 0:02:39]}  exd4 {[%clk 0:02:38]} 12. cxd4 {[%clk 0:02:31]}  Bg4 {[%clk 0:02:33]} 13. Nc3 {[%clk 0:02:13]}  Bxf3 {[%clk 0:02:27]} 14. gxf3 {[%clk 0:02:13]}  d5 {[%clk 0:02:26]} 15. e5 {[%clk 0:01:52]}  dxc4 {[%clk 0:01:57]} 16. exf6 {[%clk 0:01:52]}  Ng6 {[%clk 0:01:57]} 17. fxg7 {[%clk 0:01:50]}  Kxg7 {[%clk 0:01:56]} 18. bxc4 {[%clk 0:01:30]}  Qxd4 {[%clk 0:01:33]} 19. Qb3 {[%clk 0:01:07]}  Rfe8 {[%clk 0:01:18]} 20. Ne4 {[%clk 0:01:02]}  Qd8 {[%clk 0:00:48]} 21. Rd2 {[%clk 0:00:38]}  Qh4 {[%clk 0:00:46]} 22. Bb2+ {[%clk 0:00:31]}  Kh7 {[%clk 0:00:38]} 23. Kh1 {[%clk 0:00:08]}  Re6 {[%clk 0:00:17]} 24. Rd7 {[%clk 0:00:08]}  Qf4 {[%clk 0:00:15]} 25. Rg1 {[%clk 0:00:05]}  Rg8 {[%clk 0:00:10]} 26. Qxb7 {[%clk 0:00:04]}  Qxf3+ {[%clk 0:00:10]} 27. Rg2 {[%clk 0:00:04]}  Nh4 {[%clk 0:00:01]} 28. Nf6+ {[%clk 0:00:02]}  Rxf6 {[%clk 0:00:02]} 29. Qxf3 {[%clk 0:00:01]}  Rxf3 {[%clk 0:00:02]} 30. Rxg8 {[%clk 0:00:01]}  Kxg8 {[%clk 0:00:02]} 31. Rxc7 {[%clk 0:00:02]}  Rxf2 {[%clk 0:00:03]} 32. Rc8+ {[%clk 0:00:01]}  Kh7 {[%clk 0:00:03]} 33. Rh8+ {[%clk 0:00:02]}  Kg6 {[%clk 0:00:04]} 34. Rg8+ {[%clk 0:00:03]}  Kh5 {[%clk 0:00:04]} 0-1


[Site "https://www.chess.com"]

[Event "Titled Tuesday Blitz October 04 Early 2022"]
[White "Gunina, Valentina"]
[Black "Samunenkov, Ihor"]
[WhiteFideId "4167570"]
[BlackFideId "14187086"]
[WhiteElo "2376"]
[BlackElo "2441"]
[Result "1-0"]
[Round "10"]
[TimeControl "180+1"]
[Date "2022.10.04"]
[WhiteClock "0:01:33"]
[BlackClock "0:00:04"]

1. d4 {[%clk 0:03:00]}  Nf6 {[%clk 0:02:58]} 2. c4 {[%clk 0:03:01]}  e6 {[%clk 0:02:59]} 3. Nf3 {[%clk 0:03:01]}  b6 {[%clk 0:02:59]} 4. g3 {[%clk 0:03:01]}  c6 {[%clk 0:03:00]} 5. Bg2 {[%clk 0:02:57]}  Be7 {[%clk 0:03:00]} 6. O-O {[%clk 0:02:57]}  O-O {[%clk 0:03:01]} 7. Nc3 {[%clk 0:02:57]}  d5 {[%clk 0:03:01]} 8. b3 {[%clk 0:02:56]}  Nbd7 {[%clk 0:02:55]} 9. Bf4 {[%clk 0:02:56]}  Ba6 {[%clk 0:02:46]} 10. Nd2 {[%clk 0:02:55]}  b5 {[%clk 0:02:44]} 11. Rc1 {[%clk 0:02:43]}  bxc4 {[%clk 0:02:31]} 12. bxc4 {[%clk 0:02:43]}  Nb6 {[%clk 0:02:31]} 13. c5 {[%clk 0:02:43]}  Nc4 {[%clk 0:02:30]} 14. Nxc4 {[%clk 0:02:43]}  Bxc4 {[%clk 0:02:31]} 15. Qa4 {[%clk 0:02:40]}  Qc8 {[%clk 0:02:23]} 16. Bf3 {[%clk 0:02:37]}  Nd7 {[%clk 0:02:21]} 17. Rfe1 {[%clk 0:02:32]}  e5 {[%clk 0:02:12]} 18. dxe5 {[%clk 0:02:27]}  Nxc5 {[%clk 0:02:12]} 19. Qc2 {[%clk 0:02:27]}  Ne6 {[%clk 0:02:11]} 20. Bg4 {[%clk 0:02:10]}  Qc7 {[%clk 0:01:59]} 21. e4 {[%clk 0:02:10]}  Nxf4 {[%clk 0:01:38]} 22. gxf4 {[%clk 0:02:10]}  Ba3 {[%clk 0:01:16]} 23. Rcd1 {[%clk 0:02:08]}  Qa5 {[%clk 0:00:55]} 24. e6 {[%clk 0:01:58]}  Bb4 {[%clk 0:00:48]} 25. Re3 {[%clk 0:01:58]}  fxe6 {[%clk 0:00:45]} 26. Bxe6+ {[%clk 0:01:56]}  Kh8 {[%clk 0:00:46]} 27. exd5 {[%clk 0:01:53]}  Bxc3 {[%clk 0:00:42]} 28. Rh3 {[%clk 0:01:45]}  g6 {[%clk 0:00:21]} 29. Rxc3 {[%clk 0:01:39]}  cxd5 {[%clk 0:00:20]} 30. Qb2 {[%clk 0:01:35]}  Qd8 {[%clk 0:00:02]} 31. Rxc4+ {[%clk 0:01:34]}  Qf6 {[%clk 0:00:03]} 32. Qxf6+ {[%clk 0:01:34]}  Rxf6 {[%clk 0:00:04]} 33. Bxd5 {[%clk 0:01:33]} 1-0


[Site "https://www.chess.com"]

[Event "Titled Tuesday Blitz October 04 Early 2022"]
[White "Harsha Bharathakoti"]
[Black "Jobava, Baadur"]
[WhiteFideId "5078776"]
[BlackFideId "13601520"]
[WhiteElo "2523"]
[BlackElo "2582"]
[Result "0-1"]
[Round "10"]
[TimeControl "180+1"]
[Date "2022.10.04"]
[WhiteClock "0:00:01"]
[BlackClock "0:02:08"]

1. d4 {[%clk 0:03:00]}  Nf6 {[%clk 0:02:59]} 2. c4 {[%clk 0:03:00]}  c5 {[%clk 0:03:00]} 3. d5 {[%clk 0:03:00]}  g6 {[%clk 0:03:00]} 4. Nc3 {[%clk 0:03:00]}  d6 {[%clk 0:03:01]} 5. e4 {[%clk 0:03:00]}  Bg7 {[%clk 0:03:02]} 6. h3 {[%clk 0:02:54]}  O-O {[%clk 0:03:02]} 7. Bd3 {[%clk 0:02:54]}  e6 {[%clk 0:03:03]} 8. Nf3 {[%clk 0:02:55]}  exd5 {[%clk 0:03:04]} 9. exd5 {[%clk 0:02:55]}  Re8+ {[%clk 0:03:05]} 10. Be3 {[%clk 0:02:56]}  Rxe3+ {[%clk 0:03:05]} 11. fxe3 {[%clk 0:02:56]}  Qe7 {[%clk 0:03:06]} 12. O-O {[%clk 0:02:49]}  Nbd7 {[%clk 0:03:07]} 13. Qd2 {[%clk 0:02:32]}  b6 {[%clk 0:03:07]} 14. Rae1 {[%clk 0:02:32]}  Ba6 {[%clk 0:03:08]} 15. Qc2 {[%clk 0:02:04]}  Ne5 {[%clk 0:02:54]} 16. Nxe5 {[%clk 0:01:54]}  Qxe5 {[%clk 0:02:55]} 17. Rf3 {[%clk 0:01:38]}  h5 {[%clk 0:02:55]} 18. Ref1 {[%clk 0:01:38]}  Rf8 {[%clk 0:02:37]} 19. Qa4 {[%clk 0:01:36]}  Bc8 {[%clk 0:02:37]} 20. Qxa7 {[%clk 0:01:37]}  Bg4 {[%clk 0:02:36]} 21. hxg4 {[%clk 0:01:27]}  hxg4 {[%clk 0:02:36]} 22. R3f2 {[%clk 0:00:47]}  Qxe3 {[%clk 0:02:33]} 23. Nd1 {[%clk 0:00:15]}  Qd4 {[%clk 0:02:33]} 24. Qa3 {[%clk 0:00:16]}  g3 {[%clk 0:02:33]} 25. Be2 {[%clk 0:00:09]}  Ne4 {[%clk 0:02:26]} 26. Bf3 {[%clk 0:00:05]}  Nd2 {[%clk 0:02:10]} 27. Qe3 {[%clk 0:00:01]}  Qh4 {[%clk 0:02:08]} 0-1


[Site "https://www.chess.com"]